{"text_format":"3","workbook":"xlsx","n_sheets":1,"sheets":["Несие есептегіші"],"not_rendered":{"defined_names":9},"read":"whole","date_system":"1900"}

{"sheet":"Несие есептегіші","index":0,"n_rows":22,"n_cols":13,"rows_kept":22,"merged":[[1,1,1,3],[1,6,2,8],[1,11,2,12],[2,1,2,3],[6,5,6,6],[7,5,7,6],[10,2,10,5],[10,6,10,8],[10,9,10,12],[18,2,18,12]]}
[]
[null,"КОЛЛЕДЖ НЕСИЕСІ ",{"$nulls":4},{"v":50000,"d":"₸50,000"},{"$nulls":4},"2011-05-10"]
[null,"ЕСЕПТЕГІШ "]
[]
[null," Оқуға арналған несиені жалпы айлық қайтару сомасы бірінші жылдағы жылдық жалақының 8%-ынан аспауы тиіс."]
[]
[null,null,"Ағымдағы жалпы айлық төлем:",null,null,{"$f":"КолледжНесиелері[[#Totals],[Ағымдағы айлық төлем]]","v":{"v":328.58590726058833,"d":"₸328.59"}},null,null,"Жалпы жоспарланған айлық төлем:",{"$nulls":3},{"$f":"КолледжНесиелері[[#Totals],[Жоспарланған төлем]]","v":{"v":328.58590726058833,"d":"₸328.59"}}]
[null,null,"Айлық табыс пайызы:",null,null,{"$f":"КолледжНесиелері[[#Totals],[Ағымдағы айлық төлем]]/БолжалдыАйлықЖалақы","v":{"v":0.07886061774254119,"d":"7.89%"}},null,null,"  Айлық табыс пайызы:",{"$nulls":3},{"$f":"КолледжНесиелері[[#Totals],[Жоспарланған төлем]]/БолжалдыАйлықЖалақы","v":{"v":0.07886061774254119,"d":"7.89%"}}]
[]
[]
[null,null,"НЕСИЕНІҢ ЖАЛПЫ МӘЛІМЕТТЕРІ",{"$nulls":3},"НЕСИЕНІ ҚАЙТАРУ ДЕРЕКТЕРІ",null,null,"ТӨЛЕМ МӘЛІМЕТТЕРІ"]
[null,null,"Несие нөмірі","Несие беруші","Несие сомасы","Жылдық пайыздық мөлшерлеме","Басталу күні","Ұзақтық (жыл)","Аяқталу күні","Ағымдағы айлық төлем","Жалпы\nпайыз","Жоспарланған төлем","Жылдық төлем"]
[null,null,"10998M88","1-несие беруші",{"v":10000,"d":"₸10,000.00"},{"v":0.05,"d":"5.00%"},"2011-04-01",10,{"$f":"IF(AND(КолледжНесиелері[[#This Row],[Басталу күні]]>0,КолледжНесиелері[[#This Row],[Ұзақтық (жыл)]]>0),EDATE(КолледжНесиелері[[#This Row],[Басталу күні]],КолледжНесиелері[[#This Row],[Ұзақтық (жыл)]]*12),\"\")","v":"2021-04-01"},{"$f":"IF(AND(НесиеБастауБүгін,COUNT(КолледжНесиелері[[#This Row],[Несие сомасы]]:КолледжНесиелері[[#This Row],[Ұзақтық (жыл)]])=4,КолледжНесиелері[[#This Row],[Басталу күні]]<TODAY()),PMT(КолледжНесиелері[[#This Row],[Жылдық пайыздық мөлшерлеме]]/12,КолледжНесиелері[[#This Row],[Ұзақтық (жыл)]]*12,-КолледжНесиелері[[#This Row],[Несие сомасы]],0,0),\"\")","v":{"v":106.06551523907524,"d":"₸106.07"}},{"$f":"IFERROR((КолледжНесиелері[[#This Row],[Жоспарланған төлем]]*(КолледжНесиелері[[#This Row],[Ұзақтық (жыл)]]*12))-КолледжНесиелері[[#This Row],[Несие сомасы]],\"\")","v":{"v":2727.8618286890287,"d":"₸2,727.86"}},{"$f":"IF(COUNTA(КолледжНесиелері[[#This Row],[Несие сомасы]]:КолледжНесиелері[[#This Row],[Ұзақтық (жыл)]])<>4,\"\",PMT(КолледжНесиелері[[#This Row],[Жылдық пайыздық мөлшерлеме]]/12,КолледжНесиелері[[#This Row],[Ұзақтық (жыл)]]*12,-КолледжНесиелері[[#This Row],[Несие сомасы]],0,0))","v":{"v":106.06551523907524,"d":"₸106.07"}},{"$f":"IFERROR(КолледжНесиелері[[#This Row],[Жоспарланған төлем]]*12,\"\")","v":{"v":1272.7861828689029,"d":"₸1,272.79"}}]
[null,null,"20987N87","2-несие беруші",{"v":8000,"d":"₸8,000.00"},{"v":0.05,"d":"5.00%"},"2011-05-01",10,{"$f":"IF(AND(КолледжНесиелері[[#This Row],[Басталу күні]]>0,КолледжНесиелері[[#This Row],[Ұзақтық (жыл)]]>0),EDATE(КолледжНесиелері[[#This Row],[Басталу күні]],КолледжНесиелері[[#This Row],[Ұзақтық (жыл)]]*12),\"\")","v":"2021-05-01"},{"$f":"IF(AND(НесиеБастауБүгін,COUNT(КолледжНесиелері[[#This Row],[Несие сомасы]]:КолледжНесиелері[[#This Row],[Ұзақтық (жыл)]])=4,КолледжНесиелері[[#This Row],[Басталу күні]]<TODAY()),PMT(КолледжНесиелері[[#This Row],[Жылдық пайыздық мөлшерлеме]]/12,КолледжНесиелері[[#This Row],[Ұзақтық (жыл)]]*12,-КолледжНесиелері[[#This Row],[Несие сомасы]],0,0),\"\")","v":{"v":84.85241219126019,"d":"₸84.85"}},{"$f":"IFERROR((КолледжНесиелері[[#This Row],[Жоспарланған төлем]]*(КолледжНесиелері[[#This Row],[Ұзақтық (жыл)]]*12))-КолледжНесиелері[[#This Row],[Несие сомасы]],\"\")","v":{"v":2182.289462951223,"d":"₸2,182.29"}},{"$f":"IF(COUNTA(КолледжНесиелері[[#This Row],[Несие сомасы]]:КолледжНесиелері[[#This Row],[Ұзақтық (жыл)]])<>4,\"\",PMT(КолледжНесиелері[[#This Row],[Жылдық пайыздық мөлшерлеме]]/12,КолледжНесиелері[[#This Row],[Ұзақтық (жыл)]]*12,-КолледжНесиелері[[#This Row],[Несие сомасы]],0,0))","v":{"v":84.85241219126019,"d":"₸84.85"}},{"$f":"IFERROR(КолледжНесиелері[[#This Row],[Жоспарланған төлем]]*12,\"\")","v":{"v":1018.2289462951222,"d":"₸1,018.23"}}]
[null,null,"36785LM","3-несие беруші",{"v":6000,"d":"₸6,000.00"},{"v":0.045,"d":"4.50%"},"2012-03-01",10,{"$f":"IF(AND(КолледжНесиелері[[#This Row],[Басталу күні]]>0,КолледжНесиелері[[#This Row],[Ұзақтық (жыл)]]>0),EDATE(КолледжНесиелері[[#This Row],[Басталу күні]],КолледжНесиелері[[#This Row],[Ұзақтық (жыл)]]*12),\"\")","v":"2022-03-01"},{"$f":"IF(AND(НесиеБастауБүгін,COUNT(КолледжНесиелері[[#This Row],[Несие сомасы]]:КолледжНесиелері[[#This Row],[Ұзақтық (жыл)]])=4,КолледжНесиелері[[#This Row],[Басталу күні]]<TODAY()),PMT(КолледжНесиелері[[#This Row],[Жылдық пайыздық мөлшерлеме]]/12,КолледжНесиелері[[#This Row],[Ұзақтық (жыл)]]*12,-КолледжНесиелері[[#This Row],[Несие сомасы]],0,0),\"\")","v":{"v":62.18304525420918,"d":"₸62.18"}},{"$f":"IFERROR((КолледжНесиелері[[#This Row],[Жоспарланған төлем]]*(КолледжНесиелері[[#This Row],[Ұзақтық (жыл)]]*12))-КолледжНесиелері[[#This Row],[Несие сомасы]],\"\")","v":{"v":1461.9654305051017,"d":"₸1,461.97"}},{"$f":"IF(COUNTA(КолледжНесиелері[[#This Row],[Несие сомасы]]:КолледжНесиелері[[#This Row],[Ұзақтық (жыл)]])<>4,\"\",PMT(КолледжНесиелері[[#This Row],[Жылдық пайыздық мөлшерлеме]]/12,КолледжНесиелері[[#This Row],[Ұзақтық (жыл)]]*12,-КолледжНесиелері[[#This Row],[Несие сомасы]],0,0))","v":{"v":62.18304525420918,"d":"₸62.18"}},{"$f":"IFERROR(КолледжНесиелері[[#This Row],[Жоспарланған төлем]]*12,\"\")","v":{"v":746.1965430505102,"d":"₸746.20"}}]
[null,null,"765R43","4-несие беруші",{"v":4000,"d":"₸4,000.00"},{"v":0.05,"d":"5.00%"},"2012-05-01",5,{"$f":"IF(AND(КолледжНесиелері[[#This Row],[Басталу күні]]>0,КолледжНесиелері[[#This Row],[Ұзақтық (жыл)]]>0),EDATE(КолледжНесиелері[[#This Row],[Басталу күні]],КолледжНесиелері[[#This Row],[Ұзақтық (жыл)]]*12),\"\")","v":"2017-05-01"},{"$f":"IF(AND(НесиеБастауБүгін,COUNT(КолледжНесиелері[[#This Row],[Несие сомасы]]:КолледжНесиелері[[#This Row],[Ұзақтық (жыл)]])=4,КолледжНесиелері[[#This Row],[Басталу күні]]<TODAY()),PMT(КолледжНесиелері[[#This Row],[Жылдық пайыздық мөлшерлеме]]/12,КолледжНесиелері[[#This Row],[Ұзақтық (жыл)]]*12,-КолледжНесиелері[[#This Row],[Несие сомасы]],0,0),\"\")","v":{"v":75.48493457604374,"d":"₸75.48"}},{"$f":"IFERROR((КолледжНесиелері[[#This Row],[Жоспарланған төлем]]*(КолледжНесиелері[[#This Row],[Ұзақтық (жыл)]]*12))-КолледжНесиелері[[#This Row],[Несие сомасы]],\"\")","v":{"v":529.0960745626244,"d":"₸529.10"}},{"$f":"IF(COUNTA(КолледжНесиелері[[#This Row],[Несие сомасы]]:КолледжНесиелері[[#This Row],[Ұзақтық (жыл)]])<>4,\"\",PMT(КолледжНесиелері[[#This Row],[Жылдық пайыздық мөлшерлеме]]/12,КолледжНесиелері[[#This Row],[Ұзақтық (жыл)]]*12,-КолледжНесиелері[[#This Row],[Несие сомасы]],0,0))","v":{"v":75.48493457604374,"d":"₸75.48"}},{"$f":"IFERROR(КолледжНесиелері[[#This Row],[Жоспарланған төлем]]*12,\"\")","v":{"v":905.8192149125249,"d":"₸905.82"}}]
[null,null,"Барлығы",null,{"$f":"SUBTOTAL(109,КолледжНесиелері[Несие сомасы])","v":{"v":28000,"d":"₸28,000.00"}},{"$nulls":4},{"$f":"SUBTOTAL(109,КолледжНесиелері[Ағымдағы айлық төлем])","v":{"v":328.58590726058833,"d":"₸328.59"}},{"$f":"SUBTOTAL(109,КолледжНесиелері[Жалпы\nпайыз])","v":{"v":6901.212796707978,"d":"₸6,901.21"}},{"$f":"SUBTOTAL(109,КолледжНесиелері[Жоспарланған төлем])","v":{"v":328.58590726058833,"d":"₸328.59"}},{"$f":"SUBTOTAL(109,КолледжНесиелері[Жылдық төлем])","v":{"v":3943.03088712706,"d":"₸3,943.03"}}]
[null,null,"Орташа",null,{"$f":"AVERAGE(КолледжНесиелері[Несие сомасы])","v":{"v":7000,"d":"₸7,000.00"}},{"$f":"AVERAGE(КолледжНесиелері[Жылдық пайыздық мөлшерлеме])","v":{"v":0.04875,"d":"4.88%"}},{"$nulls":4},{"$f":"AVERAGE(КолледжНесиелері[Жалпы\nпайыз])","v":{"v":1725.3031991769944,"d":"₸1,725.30"}},null,{"$f":"AVERAGE(КолледжНесиелері[Жылдық төлем])","v":{"v":985.757721781765,"d":"₸985.76"}}]
[]
[{"$nulls":10},"Жалпы жиынтық несиені қайтару:",null,{"$f":"КолледжНесиелері[[#Totals],[Несие сомасы]]+КолледжНесиелері[[#Totals],[Жалпы\nпайыз]]","v":{"v":34901.21279670798,"d":"₸34,901.21"}}]
[]
[{"$nulls":10},"Оқу орнын бітіргеннен кейінгі жоспарланған айлық табыс:",null,{"$f":"(БолжалдыЖылдықЖалақы/12)","v":{"v":4166.666666666667,"d":"₸4,166.67"}}]